bitfinex-derivatives/quotes_SOLF0:USTF0_20250623
["timestamp","ask_amount","ask_price","bid_price","bid_amount"]
[1750638009250,40.56,132.35,132.3,5.39650489]
[1750638009843,40.56,132.35,132.33,7.5542]
[1750638010045,40.56,132.35,132.3,5.39650489]
[1750638010342,225.41650489,132.38,132.3,5.39650489]
[1750638010343,40.54,132.38,132.34,5.39650489]
[1750638010946,40.54,132.38,132.32,2.3978]
[1750638011255,40.54,132.38,132.35,5.39650489]
[1750638011943,40.54,132.38,132.34,5.39650489]
[1750638012349,40.54,132.38,132.33,8.21470002]
[1750638012549,40.54,132.38,132.36,7.5525]
[1750638013152,53.96284463,132.38,132.33,8.21470002]
[1750638013354,48.0918,132.38,132.33,8.21470002]
[1750638013849,48.0918,132.38,132.34,7.5536]
[1750638014051,40.54,132.38,132.33,8.21470002]
[1750638014253,40.54,132.38,132.32,2.3978]
[1750638014254,3.06908968,132.37,132.32,2.3978]
[1750638014454,7.555,132.33,132.27,10.72640002]
[1750638014650,40.54,132.34,132.27,10.72640002]
[1750638014852,43.6105806,132.34,132.27,10.72640002]
[1750638015050,40.54,132.34,132.27,10.72640002]
[1750638015250,40.54,132.34,132.29,8.21470002]
[1750638016655,48.094,132.34,132.31,7.5553]
[1750638017253,40.54,132.34,132.31,7.5553]
[1750638017449,40.54,132.34,132.32,7.5551]
[1750638018755,7.5534,132.36,132.32,7.5551]
[1750638018952,40.54,132.35,132.32,7.5551]
[1750638019454,48.0935,132.35,132.32,7.5551]
[1750638019655,7.5535,132.35,132.32,7.5551]
[1750638019953,48.0935,132.35,132.32,7.5551]
[1750638020945,48.0935,132.35,132.31,7.5554]
[1750638021353,766.52,132.39,132.35,7.553]
[1750638021559,113.54,132.42,132.35,8.21470002]
[1750638021761,121.0894,132.42,132.37,8.21470002]
[1750638021955,121.0894,132.42,132.39,7.5507]
[1750638022259,113.54,132.42,132.39,7.5507]
[1750638022757,113.54,132.42,132.37,8.21470002]
[1750638022758,40.54,132.42,132.37,8.21470002]
[1750638022960,766.2,132.46,132.39,8.21470002]
[1750638023259,6.35177929,132.45,132.39,8.21470002]
[1750638023874,6.35177929,132.45,132.42,7.5491]
[1750638025164,6.35177929,132.45,132.41,7.5499]
[1750638025872,13.89997929,132.45,132.41,7.5499]
[1750638026073,147.04,132.44,132.41,7.5499]
[1750638026576,147.04,132.44,132.42,7.5491]
[1750638027975,147.04,132.44,132.43,7.5488]
[1750638029368,693.2,132.46,132.42,8.21470002]
[1750638030079,40.54,132.46,132.45,7.5477]
[1750638030266,40.42,132.49,132.45,8.21470002]
[1750638031078,40.42,132.49,132.48,7.546]
[1750638031270,40.42,132.5,132.48,7.546]
[1750638031466,40.42,132.5,132.49,7.5454]
[1750638032072,40.42,132.5,132.45,8.21470002]
[1750638032474,40.42,132.5,132.47,8.21470002]
[1750638033774,40.42,132.5,132.49,7.5454]
[1750638034781,799.34,132.53,132.5,7.5447]
[1750638034782,652.38,132.53,132.5,7.5447]
[1750638034977,839.74,132.53,132.5,7.5447]
[1750638035176,692.8,132.53,132.49,8.21470002]
[1750638035582,40.4,132.61,132.48,10.57230002]
[1750638035775,153.27015665,132.6,132.52,8.21470002]
[1750638035971,146.92,132.6,132.54,8.21470002]
[1750638036172,6.36994313,132.59,132.54,8.21470002]
[1750638036372,6.36994313,132.59,132.52,8.21470002]
[1750638036573,12.17548876,132.59,132.52,8.21470002]
[1750638037075,187.44,132.61,132.55,7.5419]
[1750638037274,7.5401,132.59,132.54,8.21470002]
[1750638037473,5.86247706,132.6,132.54,8.21470002]
[1750638038080,7.54,132.59,132.54,8.21470002]
[1750638038277,5.84754263,132.6,132.54,8.21470002]
[1750638038579,7.5413,132.57,132.52,8.21470002]
[1750638038886,47.9413,132.57,132.52,8.21470002]
[1750638039082,40.4,132.57,132.52,8.21470002]
[1750638039284,40.4,132.57,132.54,8.19004341]
[1750638039482,40.4,132.57,132.55,7.542]
[1750638039683,40.4,132.57,132.54,8.19004341]
[1750638039882,40.4,132.57,132.51,8.19004341]
[1750638040074,40.4,132.57,132.52,7.5434]
[1750638040581,7.5417,132.56,132.52,7.5434]
[1750638040780,40.4,132.57,132.53,8.19004341]
[1750638040986,40.4,132.6,132.55,8.19004341]
[1750638041376,47.9392,132.6,132.55,8.19004341]
[1750638041789,40.4,132.6,132.56,7.5414]
[1750638041990,40.4,132.6,132.55,8.19004341]
[1750638042187,40.4,132.6,132.52,40.38]
[1750638042382,40.38,132.63,132.58,5.37138038]
[1750638042778,0.26951,132.64,132.6,5.37138038]
[1750638042986,0.26951,132.64,132.63,5.37138038]
[1750638043188,40.38,132.72,132.63,5.36493134]
[1750638043387,40.38,132.72,132.65,5.36493134]
[1750638043588,40.38,132.72,132.64,4.9717]
[1750638043888,5.36493134,132.68,132.59,4.9717]
[1750638044084,7.5369,132.64,132.59,4.9717]
[1750638044282,40.38,132.63,132.58,8.18460877]
[1750638044585,7.5398,132.59,132.52,45.382]
[1750638044789,40.38,132.59,132.55,8.18460877]
[1750638044991,40.38,132.59,132.52,45.382]
[1750638045287,8.18460877,132.57,132.49,8.18460877]
[1750638045487,8.18460877,132.55,132.46,5.002]
[1750638045687,40.38,132.54,132.46,5.002]
[1750638045882,40.38,132.54,132.47,7.5464]
[1750638046291,7.5441,132.52,132.47,7.5464]
[1750638046482,8.18460877,132.53,132.46,12.549]
[1750638046683,7.5453,132.5,132.46,5.002]
[1750638046989,40.38,132.49,132.44,8.18460877]
[1750638047187,40.38,132.49,132.45,7.5475]
[1750638047981,40.38,132.49,132.43,5.002]
[1750638048183,47.9255,132.49,132.44,7.5481]
[1750638048393,40.38,132.49,132.43,5.002]
[1750638048583,40.38,132.49,132.44,7.5482]
[1750638049285,40.38,132.49,132.43,5.002]
[1750638049494,8.18460877,132.48,132.4,10.48880877]
[1750638049892,7.5472,132.46,132.42,7.5493]
[1750638050189,40.38,132.45,132.42,7.5493]
[1750638050386,40.38,132.45,132.43,7.5488]
[1750638051390,40.38,132.45,132.42,7.5493]
[1750638051988,7.545,132.5,132.42,8.18460877]
[1750638052187,40.38,132.5,132.44,8.18460877]
[1750638052792,40.38,132.5,132.47,7.5464]
[1750638053289,40.38,132.5,132.46,7.547]
[1750638054486,40.38,132.5,132.45,7.5476]
[1750638054681,40.38,132.5,132.44,8.18460877]
[1750638054885,47.925,132.5,132.42,2.4137]
[1750638055093,47.925,132.5,132.44,8.18460877]
[1750638055295,40.38,132.5,132.44,8.18460877]
[1750638056294,14.0523361,132.49,132.42,10.59830877]
[1750638056497,14.0523361,132.49,132.4,2.3042]
[1750638056498,5.86772733,132.48,132.4,8.18460877]
[1750638056695,7.5467,132.47,132.4,8.18460877]
[1750638056994,41.72,132.46,132.4,8.18460877]
[1750638057399,41.72,132.46,132.42,8.18460877]
[1750638058295,41.72,132.46,132.43,7.5487]
[1750638058491,41.72,132.46,132.42,8.18460877]
[1750638058690,41.72,132.46,132.44,8.18460877]
[1750638059292,41.72,132.49,132.44,8.18460877]
[1750638059499,41.72,132.5,132.46,8.18460877]
[1750638059701,47.59426278,132.51,132.46,8.18460877]
[1750638059899,41.72,132.51,132.48,7.5456]
[1750638060199,41.72,132.51,132.47,8.18460877]
[1750638061393,47.5968534,132.51,132.47,8.18460877]
[1750638061595,55.1412534,132.51,132.47,8.18460877]
[1750638061796,41.72,132.51,132.47,8.18460877]
[1750638062405,41.72,132.51,132.49,8.18460877]
[1750638062699,41.72,132.54,132.49,8.18460877]
[1750638062891,41.72,132.57,132.52,8.18460877]
[1750638063297,5.88726329,132.56,132.52,8.18460877]
[1750638063507,41.72,132.57,132.52,8.18460877]
[1750638063805,12.25285241,132.56,132.48,8.18460877]
[1750638064002,5.88732966,132.55,132.5,8.18460877]
[1750638064201,13.43002966,132.54,132.5,15.72900877]
[1750638064399,7.5427,132.54,132.5,7.5444]
[1750638064603,9.42541637,132.56,132.49,8.18460877]
[1750638064798,13.43302515,132.55,132.51,7.5442]
[1750638065010,81.18460877,132.59,132.51,8.18460877]
[1750638065205,57.03504537,132.58,132.51,8.18460877]
[1750638065396,12.25996259,132.57,132.51,8.18460877]
[1750638065709,12.26490774,132.56,132.51,8.18460877]
[1750638065911,41.72,132.58,132.51,8.18460877]
[1750638066202,6.37449096,132.57,132.51,8.18460877]
[1750638066405,12.27114314,132.56,132.51,8.18460877]
[1750638066608,41.72,132.58,132.51,8.18460877]
[1750638066803,12.2794452,132.57,132.53,8.18460877]
[1750638066999,5.89825658,132.56,132.53,8.18460877]
[1750638067210,6.3810559,132.57,132.54,7.5422]
[1750638067410,6.3810559,132.57,132.48,15.48210877]
[1750638067411,12.27044843,132.56,132.5,8.18460877]
[1750638067609,5.88722523,132.55,132.52,8.18460877]
[1750638067809,41.72,132.58,132.52,8.18460877]
[1750638067810,6.38372662,132.56,132.52,8.18460877]
[1750638068006,6.38372662,132.57,132.52,8.18460877]
[1750638068207,12.28472182,132.56,132.52,8.18460877]
[1750638068509,7.5415,132.56,132.52,8.18460877]
[1750638069111,7.5411,132.57,132.52,8.18460877]
[1750638069308,5.89012586,132.56,132.52,8.18460877]
[1750638069513,6.39893617,132.56,132.52,8.18460877]
[1750638069709,49.2605,132.58,132.54,7.5424]
[1750638070011,12.28941853,132.57,132.54,7.5424]
[1750638070212,5.89071207,132.56,132.52,8.18460877]
[1750638070415,13.94113475,132.57,132.53,7.543]
[1750638070606,5.89073402,132.56,132.52,8.18460877]
[1750638070912,7.5414,132.57,132.53,7.5428]
[1750638071104,5.89433772,132.56,132.52,8.18460877]
[1750638071305,5.89938019,132.55,132.52,8.18460877]
[1750638071515,3.07031039,132.57,132.52,8.18460877]
[1750638071709,19.84331749,132.56,132.5,8.18460877]
[1750638071904,3.07031039,132.57,132.48,7.2975]
[1750638072211,19.84412069,132.56,132.53,7.5427]
[1750638072423,3.07031039,132.57,132.52,8.18460877]
[1750638072621,12.31175664,132.56,132.53,7.5429]
[1750638072810,5.89920718,132.55,132.51,8.18460877]
[1750638073008,3.07104216,132.56,132.51,8.18460877]
[1750638073209,12.31550714,132.55,132.51,15.72860877]
[1750638073409,55.45716922,132.58,132.51,8.18460877]
[1750638073410,6.41533439,132.54,132.51,8.18460877]
[1750638073614,3.07104216,132.57,132.51,8.18460877]
[1750638073819,22.92870122,132.56,132.52,7.5434]
[1750638074020,5.90094863,132.55,132.52,7.5434]
[1750638074219,10.61284216,132.56,132.52,7.5434]
[1750638074419,19.86052689,132.55,132.51,15.72870877]
[1750638074621,7.5424,132.55,132.51,15.72870877]
[1750638074818,7.5424,132.55,132.51,8.18460877]
[1750638075218,3.075472,132.57,132.51,8.18460877]
[1750638075423,12.32201438,132.56,132.51,8.18460877]
[1750638075723,10.616572,132.57,132.53,7.5427]
[1750638075924,5.90532084,132.56,132.53,7.5427]
[1750638076126,7.5411,132.57,132.53,7.5427]
[1750638076326,5.90532081,132.56,132.53,7.5427]
[1750638076527,7.5415,132.56,132.53,7.5427]
[1750638076926,13.96003204,132.56,132.53,7.5427]
[1750638077226,7.5415,132.56,132.52,7.5435]
[1750638077428,7.5415,132.56,132.5,8.18460877]
[1750638078126,13.44682965,132.57,132.53,7.5428]
[1750638078331,5.90572965,132.57,132.5,8.18460877]
[1750638078529,7.5414,132.56,132.52,8.18460877]
[1750638078830,5.90572965,132.57,132.5,8.18460877]
[1750638079031,12.32552587,132.56,132.48,15.48210877]
[1750638079331,5.90644619,132.55,132.48,15.48210877]
[1750638079528,47.60644619,132.54,132.48,4.7906]
[1750638079725,195.36644619,132.54,132.48,4.7906]
[1750638079927,189.46,132.54,132.48,4.7906]
[1750638080431,197.64460877,132.54,132.46,8.18460877]
[1750638080731,15.40612845,132.53,132.46,8.18460877]
[1750638080950,12.32900851,132.52,132.46,8.18460877]
[1750638081132,7.5446,132.51,132.48,7.5456]
[1750638081326,41.7,132.5,132.48,7.5456]
[1750638081637,41.7,132.5,132.46,8.18460877]
[1750638082537,41.7,132.5,132.48,7.5455]
[1750638083034,9.31900166,132.61,132.48,7.5455]
[1750638083035,8.18460877,132.55,132.48,8.18460877]
[1750638083239,41.72,132.54,132.48,8.18460877]
[1750638083737,41.72,132.54,132.51,7.5441]
[1750638083943,41.72,132.54,132.5,8.19402282]
[1750638084241,41.72,132.54,132.49,2.4544]
[1750638084439,41.72,132.54,132.51,8.19402282]
[1750638084944,41.34,132.55,132.53,7.5431]
[1750638085137,41.34,132.55,132.51,8.19402282]
[1750638085539,48.882,132.55,132.52,7.5434]
[1750638086440,41.34,132.55,132.52,7.5434]
[1750638086933,48.8831,132.54,132.48,353.8368]
[1750638087129,41.34,132.53,132.48,362.03082282]
[1750638087343,41.34,132.54,132.5,8.19402282]
[1750638087740,41.34,132.54,132.52,8.19402282]
[1750638088334,41.34,132.54,132.52,7.5434]
[1750638090939,41.34,132.54,132.49,13.09312282]
[1750638092744,48.8829,132.54,132.49,13.09312282]
[1750638093145,41.34,132.54,132.49,2.5293]
[1750638093843,41.34,132.54,132.5,7.5446]
[1750638094046,41.34,132.54,132.49,10.72332282]
[1750638094242,41.34,132.54,132.48,353.8368]
[1750638094443,7.5438,132.52,132.48,361.3825]
[1750638094840,7.5432,132.53,132.48,353.8368]
[1750638095043,41.34,132.54,132.48,353.8368]
[1750638095044,41.34,132.54,132.51,8.19402282]
[1750638095240,41.34,132.54,132.5,8.19386456]
[1750638095440,41.34,132.54,132.51,7.5439]
[1750638096040,49.53386456,132.54,132.48,353.8368]
[1750638096239,8.19386456,132.52,132.48,353.8368]
[1750638096440,8.19386456,132.5,132.48,353.6456]
[1750638096654,58.41706859,132.49,132.48,342.0763]
[1750638096941,64.34055085,132.49,132.48,11.24497602]
[1750638097243,7.5488,132.44,132.4,7.5503]
[1750638097443,41.34,132.43,132.38,8.19386456]
[1750638098047,8.19386456,132.48,132.4,8.19386456]
[1750638098240,50.86085325,132.47,132.4,8.19386456]
[1750638098440,6.43402463,132.46,132.41,40.9296]
[1750638098847,6.43402463,132.46,132.41,33.38]
[1750638099047,13.98152463,132.46,132.41,40.9296]
[1750638099453,7.5477,132.45,132.41,40.9296]
[1750638099640,41.34,132.47,132.41,33.38]
[1750638099840,6.43162505,132.46,132.41,33.38]
[1750638100437,7.5482,132.45,132.41,40.9299]
[1750638101353,7.5482,132.45,132.41,33.38]
[1750638102042,8.19386456,132.44,132.41,33.38]
[1750638102242,8.19386456,132.42,132.32,8.19386456]
[1750638102451,7.5531,132.36,132.31,10.60966456]
[1750638102651,41.34,132.35,132.31,8.19386456]
[1750638102862,41.34,132.35,132.3,2.3043]
[1750638103152,41.34,132.35,132.28,2.4158]
[1750638103153,41.34,132.35,132.31,7.5553]
[1750638103352,41.34,132.35,132.28,10.60966456]
[1750638103656,8.19386456,132.34,132.28,7.5569]
[1750638103950,156.01386456,132.34,132.26,10.49816456]
[1750638104147,163.56796456,132.34,132.29,7.5564]
[1750638104951,156.01386456,132.34,132.28,7.5573]
[1750638105249,8.19386456,132.32,132.24,8.19386456]
[1750638105453,41.36,132.31,132.24,8.19386456]
[1750638106352,41.36,132.31,132.28,7.557]
[1750638106553,41.36,132.31,132.24,17.18386456]
[1750638106745,41.36,132.31,132.26,7.5581]
[1750638107054,660.17386456,132.36,132.26,8.19386456]
[1750638107248,660.17386456,132.36,132.34,7.554]
[1750638107249,41.36,132.35,132.34,7.554]
[1750638107547,41.36,132.35,132.25,41.38]
[1750638107548,41.36,132.35,132.3,8.19386456]
[1750638108057,41.36,132.35,132.33,7.5541]
[1750638108451,41.36,132.35,132.3,8.19386456]
[1750638108752,41.36,132.35,132.33,7.5541]
[1750638108950,41.36,132.35,132.3,8.19386456]
[1750638109149,41.36,132.35,132.28,8.19386456]
[1750638109549,8.19386456,132.34,132.28,7.5571]
[1750638109749,148.0,132.33,132.28,7.5571]
[1750638109943,148.0,132.33,132.24,17.18386456]
[1750638110349,7.5562,132.31,132.24,8.99]
[1750638110660,41.38,132.3,132.24,8.99]
[1750638111353,41.38,132.3,132.27,7.5576]
[1750638111655,41.38,132.3,132.24,8.99]
[1750638111956,7.5591,132.25,132.24,8.99]
[1750638112158,197.6391,132.25,132.24,8.99]
[1750638112660,205.1991,132.25,132.24,8.99]
[1750638113654,190.08,132.25,132.24,8.99]
[1750638113855,41.4,132.25,132.24,8.99]
[1750638114155,161.64991952,132.28,132.24,8.99]
[1750638114156,42.46,132.28,132.24,8.99]
[1750638114653,42.46,132.28,132.26,7.558]
[1750638115559,42.46,132.28,132.25,7.5589]
[1750638115755,42.46,132.28,132.24,8.99]
[1750638116161,50.0178,132.28,132.24,8.99]
[1750638116461,42.46,132.28,132.24,8.99]
[1750638116649,12.88991952,132.27,132.24,8.99]
[1750638116853,148.9,132.26,132.24,8.99]
[1750638117053,7.5591,132.25,132.24,8.99]
[1750638117660,20.46550207,132.25,132.24,8.99]
[1750638118954,20.46550207,132.25,132.13,7.3501]
[1750638118955,673.30640207,132.25,132.13,7.3501]
[1750638119156,12.90640207,132.21,132.13,7.3501]
[1750638119349,191.34,132.2,132.15,7.5643]
[1750638119762,191.34,132.2,132.13,7.3501]
[1750638119961,7.5627,132.19,132.13,7.3501]
[1750638120162,191.34,132.2,132.13,7.3501]
[1750638120559,7.5626,132.19,132.15,7.5644]
[1750638120754,652.84,132.25,132.16,12.91021808]
[1750638120956,42.46,132.24,132.19,12.91021808]
[1750638122760,42.46,132.24,132.23,7.5602]
[1750638122962,42.46,132.24,132.21,12.91021808]
[1750638123170,42.46,132.24,132.23,7.5602]
[1750638123658,42.46,132.24,132.22,7.5606]
[1750638123968,42.46,132.24,132.19,12.91021808]
[1750638124665,42.46,132.24,132.21,7.561]
[1750638125263,42.46,132.24,132.23,20.47041808]
[1750638125670,30.9883,132.24,132.23,20.47041808]
[1750638125861,149.14,132.27,132.25,7.5589]
[1750638126067,191.62,132.27,132.23,12.91021808]
[1750638126566,191.62,132.27,132.25,7.559]
[1750638129863,191.62,132.27,132.26,7.5585]
[1750638130267,191.62,132.27,132.23,12.91021808]
[1750638130461,191.62,132.27,132.24,7.5596]
[1750638131464,199.1784,132.27,132.23,7.56]
[1750638131771,191.62,132.27,132.2,2.461]
[1750638132569,191.62,132.27,132.21,12.91021808]
[1750638133367,199.178,132.27,132.23,7.5599]
[1750638133763,191.62,132.27,132.2,2.461]
[1750638133963,199.1783,132.27,132.23,7.56]
[1750638134166,191.62,132.27,132.2,2.461]
[1750638134569,204.53021808,132.27,132.18,4.8058]
[1750638135065,7.5594,132.25,132.18,4.8058]
[1750638135668,19.09002267,132.25,132.18,4.8058]
[1750638135865,12.91021808,132.25,132.18,4.8058]
[1750638136066,7.5601,132.24,132.18,4.8058]
[1750638136273,42.48,132.23,132.18,4.8058]
[1750638136870,34.915,132.23,132.19,12.91021808]
[1750638137272,22.4469,132.23,132.21,12.91021808]
[1750638137471,42.48,132.27,132.22,2.4806]
[1750638137671,191.44,132.29,132.25,12.91021808]
[1750638137971,653.14,132.32,132.31,7.5557]
[1750638137972,695.62,132.32,132.31,7.5557]
[1750638138165,701.26669443,132.32,132.28,12.91021808]
[1750638138367,695.62,132.32,132.28,12.91021808]
[1750638138574,695.62,132.32,132.28,12.88268681]
[1750638138971,695.62,132.32,132.31,7.5557]
[1750638140568,701.80367198,132.32,132.31,7.5557]
[1750638141662,6.18367198,132.32,132.31,7.5557]
[1750638141869,191.34,132.35,132.3,12.88268681]
[1750638142072,6.19218386,132.34,132.3,12.88268681]
[1750638142271,6.19218386,132.33,132.3,12.88268681]
[1750638142476,191.34,132.35,132.34,7.554]
[1750638142672,197.53717193,132.35,132.34,7.554]
[1750638143174,197.53717193,132.35,132.31,15.21338681]
[1750638143368,6.19717193,132.34,132.31,15.21338681]
[1750638143570,42.46,132.36,132.33,12.88268681]
[1750638143970,6.20229431,132.35,132.34,7.554]
[1750638144171,42.46,132.36,132.33,12.88268681]
[1750638144371,6.20729939,132.35,132.33,12.88268681]
[1750638144573,42.46,132.36,132.33,12.88268681]
[1750638144774,42.46,132.36,132.35,7.5534]
[1750638144975,48.66725689,132.36,132.35,7.5534]
[1750638147071,695.52,132.39,132.38,7.5517]
[1750638147280,701.77284403,132.39,132.38,7.5517]
[1750638147580,48.69284403,132.39,132.38,7.5517]
[1750638148677,42.44,132.42,132.4,7.5502]
[1750638148875,42.44,132.42,132.37,12.88268681]
[1750638149072,42.44,132.42,132.39,7.551]
[1750638149073,48.12868069,132.42,132.39,7.551]
[1750638149275,191.2,132.42,132.37,12.88268681]
[1750638150279,42.44,132.42,132.37,12.88268681]
[1750638150878,42.44,132.42,132.39,12.88268681]
[1750638151080,42.44,132.42,132.34,47.4435]
[1750638151281,42.44,132.42,132.4,7.5505]
[1750638151685,42.44,132.42,132.39,7.5511]
[1750638151886,42.44,132.42,132.36,12.88268681]
[1750638152782,42.44,132.42,132.39,7.551]
[1750638152983,42.44,132.42,132.36,12.88268681]
[1750638153384,42.44,132.42,132.39,7.5508]
[1750638153784,49.9895,132.42,132.39,7.5508]
[1750638154785,42.44,132.42,132.39,7.5508]
[1750638155294,42.44,132.42,132.41,7.55]
[1750638155486,42.42,132.45,132.4,12.88268681]
[1750638155793,7.5486,132.44,132.4,7.5501]
[1750638155993,42.42,132.45,132.39,2.4639]
[1750638156300,42.42,132.45,132.4,8.20684221]
[1750638156588,42.42,132.45,132.39,2.4639]
[1750638156790,8.20684221,132.44,132.36,8.20684221]
[1750638157187,7.5497,132.42,132.38,7.5513]
[1750638157388,42.42,132.41,132.38,7.5513]
[1750638157995,42.42,132.41,132.39,7.551]
[1750638159198,49.9704,132.41,132.37,7.5519]
[1750638159591,49.9704,132.41,132.35,8.20684221]
[1750638159994,42.42,132.41,132.35,8.20684221]
[1750638160499,42.42,132.41,132.34,5.0035]
[1750638160500,42.42,132.41,132.4,7.5505]
[1750638160687,191.2,132.44,132.39,8.20684221]
[1750638161090,191.2,132.44,132.41,7.5496]
[1750638161286,191.2,132.44,132.39,8.20684221]
[1750638162094,191.2,132.44,132.42,7.5494]
[1750638162596,191.2,132.44,132.41,7.5497]
[1750638162795,191.2,132.44,132.39,8.20684221]
[1750638163197,191.2,132.44,132.4,2.4784]
[1750638163601,42.42,132.44,132.41,8.20684221]
[1750638163796,652.84,132.46,132.45,7.5477]
[1750638164097,42.42,132.47,132.43,8.20684221]
[1750638164893,42.42,132.47,132.44,7.5479]
[1750638165196,42.42,132.47,132.41,13.09044221]
[1750638165399,42.42,132.47,132.42,7.5491]
[1750638165595,42.42,132.47,132.37,4.8215]
[1750638165596,50.62833596,132.47,132.37,4.8215]
[1750638165797,8.20833596,132.45,132.37,4.8215]
[1750638165998,7.5491,132.43,132.39,7.5508]
[1750638166302,191.06,132.42,132.37,4.8215]
[1750638166502,198.6097,132.42,132.38,7.5512]
[1750638167006,7.5501,132.41,132.38,7.5512]
[1750638167502,191.06,132.42,132.38,7.5512]
[1750638167703,198.6098,132.42,132.37,2.4907]
[1750638168008,191.06,132.42,132.35,10.6906873]
[1750638168308,7.5503,132.41,132.37,7.5518]
[1750638168500,191.06,132.42,132.36,12.86956458]
[1750638168696,42.4,132.42,132.36,12.86956458]
[1750638170307,42.4,132.42,132.35,15.34796458]
[1750638170707,42.4,132.42,132.4,7.5505]
[1750638170899,42.4,132.42,132.35,15.34796458]
[1750638171098,12.86956458,132.41,132.31,12.86956458]
[1750638171306,15.31586458,132.41,132.31,15.32486458]
[1750638171610,42.4,132.42,132.33,12.86956458]
[1750638171815,7.5502,132.41,132.33,12.86956458]
[1750638172310,7.5502,132.41,132.37,7.5519]
[1750638173512,7.5507,132.4,132.37,7.5519]
[1750638174217,12.86956458,132.41,132.31,15.32486458]
[1750638174714,12.86956458,132.41,132.35,7.5529]
[1750638175103,7.5513,132.39,132.35,7.5529]
[1750638175307,42.22,132.38,132.35,7.5529]
[1750638176412,42.22,132.38,132.36,7.5528]
[1750638177711,49.7717,132.38,132.35,7.5533]
[1750638177906,49.7717,132.38,132.31,2.4553]
[1750638177907,42.22,132.38,132.31,2.4553]
[1750638178211,7.5525,132.37,132.31,2.4553]
[1750638179010,42.22,132.38,132.31,2.4553]
[1750638179410,42.22,132.38,132.35,7.553]
[1750638179924,42.22,132.38,132.34,7.5537]
[1750638180111,47.95653557,132.38,132.34,7.5537]
[1750638180308,42.22,132.38,132.31,2.4553]
[1750638180517,6.19634325,132.37,132.29,4.9594]
[1750638180705,19.07770622,132.36,132.29,2.4554]
[1750638180912,12.88136297,132.34,132.26,7.5584]
[1750638181111,12.88136297,132.32,132.22,15.28846297]
[1750638181314,6.19634325,132.31,132.22,15.28846297]
[1750638181614,7.5574,132.28,132.24,7.5594]
[1750638181807,42.22,132.27,132.22,2.4071]
[1750638182614,42.24,132.29,132.28,7.5572]
[1750638182810,42.24,132.32,132.26,12.88136297]
[1750638183316,42.24,132.32,132.31,7.5557]
[1750638185813,42.24,132.34,132.32,7.5548]
[1750638186018,42.24,132.34,132.28,2.3093]
[1750638186918,42.24,132.34,132.32,7.5548]
[1750638187114,42.24,132.34,132.28,2.3093]
[1750638187417,42.24,132.34,132.31,7.5553]
[1750638188321,42.24,132.34,132.32,7.5551]
[1750638188514,42.24,132.34,132.28,10.53076011]
[1750638188914,42.24,132.34,132.31,7.5555]
[1750638190923,808.4538,132.35,132.31,7.5555]
[1750638190924,190.62,132.33,132.31,7.5555]
[1750638191117,190.62,132.33,132.28,2.3093]
[1750638191614,652.46,132.35,132.28,2.3093]
[1750638191813,190.54,132.34,132.31,7.5553]
[1750638192409,8.22589933,132.32,132.16,13.78720187]
[1750638192622,8.22589933,132.3,132.22,10.55919933]
[1750638192822,190.6,132.29,132.26,7.558]
[1750638193121,190.6,132.29,132.22,10.55919933]
[1750638194318,42.24,132.28,132.26,7.5583]
[1750638194519,42.24,132.28,132.22,10.55919933]
[1750638194722,42.24,132.28,132.24,7.5595]
[1750638195224,42.24,132.28,132.22,9.8937]
[1750638195424,8.22589933,132.29,132.22,2.3333]
[1750638195621,190.76,132.28,132.22,2.3333]